[Event "Titled Tuesday Blitz September 21 2021"]
[White "Devaev, Alexander"]
[Black "Mirzoev, Azer"]
[WhiteFideId "4169395"]
[BlackFideId "13400304"]
[WhiteElo "2185"]
[BlackElo "2525"]
[Result "1-0"]
[Round "02"]
[TimeControl "180+1"]
[Date "2021.09.21"]
[WhiteClock "0:00:15"]
[BlackClock "0:00:02"]

1. d4 {[%clk 0:02:34]}  d5 {[%clk 0:02:09]} 2. c4 {[%clk 0:02:33]}  e6 {[%clk 0:02:09]} 3. cxd5 {[%clk 0:02:33]}  exd5 {[%clk 0:02:09]} 4. Nc3 {[%clk 0:02:34]}  c6 {[%clk 0:02:09]} 5. Nf3 {[%clk 0:02:33]}  Bf5 {[%clk 0:02:09]} 6. Bf4 {[%clk 0:02:33]}  Nd7 {[%clk 0:02:08]} 7. e3 {[%clk 0:02:33]}  Qb6 {[%clk 0:02:07]} 8. Qc1 {[%clk 0:02:32]}  Be7 {[%clk 0:02:06]} 9. Be2 {[%clk 0:02:32]}  Ngf6 {[%clk 0:02:06]} 10. Nh4 {[%clk 0:02:32]}  Be6 {[%clk 0:02:06]} 11. Nf3 {[%clk 0:02:32]}  O-O {[%clk 0:02:05]} 12. O-O {[%clk 0:02:32]}  Bf5 {[%clk 0:02:05]} 13. Nh4 {[%clk 0:02:32]}  Bg4 {[%clk 0:02:02]} 14. Bxg4 {[%clk 0:02:31]}  Nxg4 {[%clk 0:02:02]} 15. Nf5 {[%clk 0:02:32]}  Bd8 {[%clk 0:01:59]} 16. h3 {[%clk 0:02:15]}  Ngf6 {[%clk 0:01:59]} 17. Bg5 {[%clk 0:02:13]}  Re8 {[%clk 0:01:56]} 18. Rb1 {[%clk 0:02:01]}  a5 {[%clk 0:01:55]} 19. Nh4 {[%clk 0:01:28]}  h6 {[%clk 0:01:49]} 20. Bxf6 {[%clk 0:01:27]}  Bxf6 {[%clk 0:01:42]} 21. Nf3 {[%clk 0:01:28]}  g6 {[%clk 0:01:42]} 22. Qc2 {[%clk 0:01:20]}  Qa6 {[%clk 0:01:36]} 23. Rfc1 {[%clk 0:01:19]}  Bg7 {[%clk 0:01:33]} 24. Ne2 {[%clk 0:01:17]}  a4 {[%clk 0:01:31]} 25. Nf4 {[%clk 0:01:16]}  Nf8 {[%clk 0:01:24]} 26. Nd3 {[%clk 0:01:16]}  Ne6 {[%clk 0:01:23]} 27. Nc5 {[%clk 0:01:16]}  Nxc5 {[%clk 0:01:23]} 28. Qxc5 {[%clk 0:01:17]}  Bf8 {[%clk 0:01:23]} 29. Qc2 {[%clk 0:01:11]}  Bd6 {[%clk 0:01:20]} 30. Ne1 {[%clk 0:01:09]}  Kg7 {[%clk 0:01:16]} 31. Qd3 {[%clk 0:01:09]}  Qxd3 {[%clk 0:01:14]} 32. Nxd3 {[%clk 0:01:10]}  Ra5 {[%clk 0:01:14]} 33. Rc2 {[%clk 0:01:07]}  h5 {[%clk 0:01:13]} 34. Kf1 {[%clk 0:01:03]}  h4 {[%clk 0:01:11]} 35. Rbc1 {[%clk 0:01:00]}  Rb5 {[%clk 0:01:09]} 36. Rd1 {[%clk 0:00:59]}  Kf6 {[%clk 0:01:08]} 37. Nc1 {[%clk 0:00:59]}  Ra8 {[%clk 0:01:06]} 38. Ne2 {[%clk 0:00:59]}  Ke7 {[%clk 0:01:03]} 39. Ng1 {[%clk 0:00:56]}  g5 {[%clk 0:01:01]} 40. Nf3 {[%clk 0:00:56]}  f6 {[%clk 0:01:01]} 41. Ne1 {[%clk 0:00:51]}  f5 {[%clk 0:01:00]} 42. Nd3 {[%clk 0:00:48]}  Kf6 {[%clk 0:00:59]} 43. Ke2 {[%clk 0:00:44]}  Re8 {[%clk 0:00:57]} 44. Kf1 {[%clk 0:00:42]}  f4 {[%clk 0:00:56]} 45. exf4 {[%clk 0:00:41]}  gxf4 {[%clk 0:00:56]} 46. Ne1 {[%clk 0:00:41]}  Rh8 {[%clk 0:00:48]} 47. Nf3 {[%clk 0:00:42]}  Rb4 {[%clk 0:00:47]} 48. Re2 {[%clk 0:00:41]}  Rc4 {[%clk 0:00:41]} 49. Rde1 {[%clk 0:00:41]}  Kf5 {[%clk 0:00:37]} 50. Re6 {[%clk 0:00:39]}  Bb8 {[%clk 0:00:32]} 51. Re7 {[%clk 0:00:39]}  Rb4 {[%clk 0:00:24]} 52. R1e2 {[%clk 0:00:39]}  Kf6 {[%clk 0:00:21]} 53. R2e6+ {[%clk 0:00:36]}  Kf5 {[%clk 0:00:21]} 54. Re2 {[%clk 0:00:37]}  Rh6 {[%clk 0:00:20]} 55. Rf7+ {[%clk 0:00:31]}  Rf6 {[%clk 0:00:17]} 56. Rh7 {[%clk 0:00:31]}  Kg6 {[%clk 0:00:15]} 57. Rxh4 {[%clk 0:00:31]}  Ba7 {[%clk 0:00:15]} 58. Rg4+ {[%clk 0:00:31]}  Kh6 {[%clk 0:00:12]} 59. Rd2 {[%clk 0:00:30]}  Rc4 {[%clk 0:00:12]} 60. Ke2 {[%clk 0:00:18]}  b5 {[%clk 0:00:12]} 61. Kd3 {[%clk 0:00:18]}  Bb6 {[%clk 0:00:11]} 62. Re2 {[%clk 0:00:15]}  a3 {[%clk 0:00:10]} 63. b3 {[%clk 0:00:15]}  Rc1 {[%clk 0:00:10]} 64. Re8 {[%clk 0:00:14]}  Rd1+ {[%clk 0:00:10]} 65. Ke2 {[%clk 0:00:15]}  Ra1 {[%clk 0:00:02]} 66. Rh8# {[%clk 0:00:15]} 1-0


[Site "https://www.chess.com"]

[Event "Titled Tuesday Blitz September 21 2021"]
[White "Dong, Bao Nghia"]
[Black "Rustemov, Alexander"]
[WhiteFideId "12400343"]
[BlackFideId "4119002"]
[WhiteElo "2414"]
[BlackElo "2773"]
[Result "1-0"]
[Round "02"]
[TimeControl "180+1"]
[Date "2021.09.21"]
[WhiteClock "0:01:45"]
[BlackClock "0:00:02"]

1. d4 {[%clk 0:02:57]}  d5 {[%clk 0:02:59]} 2. c4 {[%clk 0:02:57]}  e6 {[%clk 0:02:59]} 3. Nc3 {[%clk 0:02:58]}  Be7 {[%clk 0:03:00]} 4. Nf3 {[%clk 0:02:58]}  Nf6 {[%clk 0:03:00]} 5. Bg5 {[%clk 0:02:58]}  Nbd7 {[%clk 0:03:00]} 6. e3 {[%clk 0:02:58]}  h6 {[%clk 0:03:00]} 7. Bh4 {[%clk 0:02:58]}  O-O {[%clk 0:03:00]} 8. Qc2 {[%clk 0:02:58]}  c5 {[%clk 0:02:57]} 9. cxd5 {[%clk 0:02:58]}  Nxd5 {[%clk 0:02:57]} 10. Bxe7 {[%clk 0:02:58]}  Nxe7 {[%clk 0:02:56]} 11. Rd1 {[%clk 0:02:58]}  cxd4 {[%clk 0:02:46]} 12. Nxd4 {[%clk 0:02:55]}  Qc7 {[%clk 0:02:37]} 13. Be2 {[%clk 0:02:53]}  b6 {[%clk 0:02:37]} 14. Bf3 {[%clk 0:02:52]}  Bb7 {[%clk 0:02:36]} 15. Ndb5 {[%clk 0:02:53]}  Qc8 {[%clk 0:01:00]} 16. Nd6 {[%clk 0:02:52]}  Qc7 {[%clk 0:01:00]} 17. Nxb7 {[%clk 0:02:41]}  Ne5 {[%clk 0:00:55]} 18. Nd6 {[%clk 0:02:36]}  Nxf3+ {[%clk 0:00:51]} 19. gxf3 {[%clk 0:02:37]}  a6 {[%clk 0:00:52]} 20. Nde4 {[%clk 0:02:36]}  Nf5 {[%clk 0:00:42]} 21. Qe2 {[%clk 0:02:31]}  b5 {[%clk 0:00:37]} 22. Ng3 {[%clk 0:02:31]}  Nh4 {[%clk 0:00:33]} 23. a3 {[%clk 0:02:30]}  Qb7 {[%clk 0:00:29]} 24. f4 {[%clk 0:02:02]}  Rfd8 {[%clk 0:00:26]} 25. Qg4 {[%clk 0:01:58]}  Rxd1+ {[%clk 0:00:18]} 26. Nxd1 {[%clk 0:01:58]}  Ng6 {[%clk 0:00:14]} 27. h4 {[%clk 0:01:52]}  Rd8 {[%clk 0:00:11]} 28. h5 {[%clk 0:01:52]}  Ne7 {[%clk 0:00:11]} 29. Rg1 {[%clk 0:01:51]}  Kh8 {[%clk 0:00:08]} 30. f5 {[%clk 0:01:47]}  exf5 {[%clk 0:00:02]} 31. Nxf5 {[%clk 0:01:47]}  Nxf5 {[%clk 0:00:02]} 32. Qxf5 {[%clk 0:01:48]}  Qe7 {[%clk 0:00:02]} 33. Nc3 {[%clk 0:01:45]} 1-0


[Site "https://www.chess.com"]

[Event "Titled Tuesday Blitz September 21 2021"]
[White "Dzhaparov, Medet"]
[Black "Arjun Kalyan"]
[WhiteFideId "13803689"]
[BlackFideId "35018701"]
[WhiteElo "1702"]
[BlackElo "2321"]
[Result "0-1"]
[Round "02"]
[TimeControl "180+1"]
[Date "2021.09.21"]
[WhiteClock "0:00:01"]
[BlackClock "0:00:23"]

1. d4 {[%clk 0:03:00]}  d5 {[%clk 0:02:58]} 2. c4 {[%clk 0:03:00]}  e6 {[%clk 0:02:59]} 3. Nc3 {[%clk 0:03:00]}  h6 {[%clk 0:02:58]} 4. cxd5 {[%clk 0:02:38]}  exd5 {[%clk 0:02:58]} 5. Bf4 {[%clk 0:02:37]}  Nf6 {[%clk 0:02:58]} 6. e3 {[%clk 0:02:37]}  Bd6 {[%clk 0:02:57]} 7. Bg3 {[%clk 0:02:33]}  O-O {[%clk 0:02:56]} 8. Bd3 {[%clk 0:02:33]}  c5 {[%clk 0:02:54]} 9. Nge2 {[%clk 0:02:31]}  Nc6 {[%clk 0:02:53]} 10. O-O {[%clk 0:02:29]}  cxd4 {[%clk 0:02:52]} 11. Nxd4 {[%clk 0:02:29]}  Nxd4 {[%clk 0:02:52]} 12. exd4 {[%clk 0:02:29]}  Bxg3 {[%clk 0:02:49]} 13. hxg3 {[%clk 0:02:28]}  Qb6 {[%clk 0:02:49]} 14. Qd2 {[%clk 0:02:16]}  Bd7 {[%clk 0:02:43]} 15. Rfe1 {[%clk 0:02:03]}  Rfe8 {[%clk 0:02:42]} 16. Re5 {[%clk 0:02:01]}  Bc6 {[%clk 0:02:38]} 17. Rae1 {[%clk 0:02:00]}  Rxe5 {[%clk 0:02:33]} 18. dxe5 {[%clk 0:01:59]}  Nd7 {[%clk 0:02:13]} 19. Bf5 {[%clk 0:01:36]}  Nf8 {[%clk 0:02:10]} 20. Nxd5 {[%clk 0:01:32]}  Bxd5 {[%clk 0:01:59]} 21. Qxd5 {[%clk 0:01:32]}  Rd8 {[%clk 0:01:48]} 22. Qb3 {[%clk 0:01:11]}  Qxb3 {[%clk 0:01:45]} 23. axb3 {[%clk 0:01:11]}  Rd2 {[%clk 0:01:46]} 24. Ra1 {[%clk 0:00:34]}  Rxb2 {[%clk 0:01:25]} 25. Rxa7 {[%clk 0:00:34]}  Rxb3 {[%clk 0:01:26]} 26. Bc8 {[%clk 0:00:27]}  b5 {[%clk 0:01:19]} 27. Rb7 {[%clk 0:00:26]}  b4 {[%clk 0:01:16]} 28. Kh2 {[%clk 0:00:25]}  Rb2 {[%clk 0:01:16]} 29. f4 {[%clk 0:00:25]}  Rc2 {[%clk 0:00:56]} 30. Bf5 {[%clk 0:00:23]}  Rc4 {[%clk 0:00:56]} 31. Kh3 {[%clk 0:00:14]}  g6 {[%clk 0:00:54]} 32. Bd7 {[%clk 0:00:12]}  Rd4 {[%clk 0:00:50]} 33. Bc8 {[%clk 0:00:10]}  h5 {[%clk 0:00:46]} 34. f5 {[%clk 0:00:08]}  Rd8 {[%clk 0:00:44]} 35. Rc7 {[%clk 0:00:05]}  b3 {[%clk 0:00:43]} 36. fxg6 {[%clk 0:00:03]}  fxg6 {[%clk 0:00:41]} 37. e6 {[%clk 0:00:01]}  b2 {[%clk 0:00:27]} 38. e7 {[%clk 0:00:01]}  Rd1 {[%clk 0:00:23]} 0-1


[Site "https://www.chess.com"]

[Event "Titled Tuesday Blitz September 21 2021"]
[White "Gelman, Alexander"]
[Black "Bach, Ngoc Thuy Duong"]
[WhiteFideId "4118316"]
[BlackFideId "12408956"]
[WhiteElo "2375"]
[BlackElo "1896"]
[Result "1-0"]
[Round "02"]
[TimeControl "180+1"]
[Date "2021.09.21"]
[WhiteClock "0:00:06"]
[BlackClock "0:00:02"]

1. d4 {[%clk 0:03:00]}  d5 {[%clk 0:03:00]} 2. Nc3 {[%clk 0:03:01]}  Nf6 {[%clk 0:02:54]} 3. Bf4 {[%clk 0:03:00]}  c6 {[%clk 0:02:49]} 4. f3 {[%clk 0:03:00]}  Bf5 {[%clk 0:02:45]} 5. g4 {[%clk 0:02:59]}  Bg6 {[%clk 0:02:45]} 6. h4 {[%clk 0:02:59]}  h5 {[%clk 0:02:44]} 7. g5 {[%clk 0:02:59]}  Nfd7 {[%clk 0:02:44]} 8. e4 {[%clk 0:03:00]}  dxe4 {[%clk 0:02:41]} 9. fxe4 {[%clk 0:02:59]}  e5 {[%clk 0:02:28]} 10. dxe5 {[%clk 0:03:00]}  Qb6 {[%clk 0:02:28]} 11. Qd2 {[%clk 0:02:29]}  Nc5 {[%clk 0:02:01]} 12. O-O-O {[%clk 0:02:25]}  Ne6 {[%clk 0:01:57]} 13. Be3 {[%clk 0:02:17]}  Qc7 {[%clk 0:01:56]} 14. Nf3 {[%clk 0:02:04]}  Nd7 {[%clk 0:01:49]} 15. Bh3 {[%clk 0:01:55]}  Bc5 {[%clk 0:01:02]} 16. Nd5 {[%clk 0:01:46]}  cxd5 {[%clk 0:00:59]} 17. Bxc5 {[%clk 0:01:39]}  Nexc5 {[%clk 0:00:48]} 18. exd5 {[%clk 0:01:39]}  Ne4 {[%clk 0:00:39]} 19. Qh2 {[%clk 0:01:17]}  Nb6 {[%clk 0:00:18]} 20. d6 {[%clk 0:01:00]}  Qc6 {[%clk 0:00:18]} 21. d7+ {[%clk 0:01:00]}  Ke7 {[%clk 0:00:17]} 22. Nd4 {[%clk 0:00:59]}  Qc4 {[%clk 0:00:15]} 23. Kb1 {[%clk 0:00:41]}  Rhd8 {[%clk 0:00:14]} 24. Rhf1 {[%clk 0:00:26]}  Na4 {[%clk 0:00:10]} 25. Rf3 {[%clk 0:00:16]}  Nac5 {[%clk 0:00:04]} 26. e6 {[%clk 0:00:15]}  fxe6 {[%clk 0:00:04]} 27. Qe5 {[%clk 0:00:14]}  Rxd7 {[%clk 0:00:03]} 28. Qxg7+ {[%clk 0:00:14]}  Kd8 {[%clk 0:00:03]} 29. Qxg6 {[%clk 0:00:13]}  Kc7 {[%clk 0:00:04]} 30. c3 {[%clk 0:00:12]}  Rad8 {[%clk 0:00:02]} 31. Qxh5 {[%clk 0:00:10]}  Rd6 {[%clk 0:00:01]} 32. Rff1 {[%clk 0:00:10]}  e5 {[%clk 0:00:01]} 33. Nc2 {[%clk 0:00:08]}  Rxd1+ {[%clk 0:00:01]} 34. Rxd1 {[%clk 0:00:09]}  Rxd1+ {[%clk 0:00:01]} 35. Qxd1 {[%clk 0:00:10]}  Qd3 {[%clk 0:00:01]} 36. Qxd3 {[%clk 0:00:10]}  Nxd3 {[%clk 0:00:02]} 37. g6 {[%clk 0:00:10]}  Nf4 {[%clk 0:00:02]} 38. Bf5 {[%clk 0:00:10]}  Nf6 {[%clk 0:00:03]} 39. Ne3 {[%clk 0:00:09]}  Kd6 {[%clk 0:00:03]} 40. Kc2 {[%clk 0:00:09]}  e4 {[%clk 0:00:02]} 41. g7 {[%clk 0:00:07]}  Ke5 {[%clk 0:00:02]} 42. Bh7 {[%clk 0:00:06]} 1-0


[Site "https://www.chess.com"]

[Event "Titled Tuesday Blitz September 21 2021"]
[White "Guliev, Logman"]
[Black "Suarez Gomez, Julio"]
[WhiteFideId "13400061"]
[BlackFideId "22275991"]
[WhiteElo "2128"]
[BlackElo "2376"]
[Result "0-1"]
[Round "02"]
[TimeControl "180+1"]
[Date "2021.09.21"]
[WhiteClock "0:00:20"]
[BlackClock "0:01:04"]

1. e4 {[%clk 0:03:00]}  e6 {[%clk 0:02:57]} 2. d4 {[%clk 0:03:00]}  d5 {[%clk 0:02:57]} 3. Nc3 {[%clk 0:03:00]}  Bb4 {[%clk 0:02:57]} 4. e5 {[%clk 0:03:00]}  c5 {[%clk 0:02:57]} 5. a3 {[%clk 0:03:01]}  Bxc3+ {[%clk 0:02:57]} 6. bxc3 {[%clk 0:03:01]}  Ne7 {[%clk 0:02:57]} 7. Qg4 {[%clk 0:03:01]}  cxd4 {[%clk 0:02:58]} 8. cxd4 {[%clk 0:02:47]}  Qc7 {[%clk 0:02:58]} 9. Bd2 {[%clk 0:02:43]}  Nf5 {[%clk 0:02:15]} 10. Bd3 {[%clk 0:02:41]}  O-O {[%clk 0:02:15]} 11. Nf3 {[%clk 0:02:33]}  b6 {[%clk 0:02:14]} 12. O-O {[%clk 0:02:28]}  Ba6 {[%clk 0:02:05]} 13. Bxf5 {[%clk 0:02:11]}  exf5 {[%clk 0:02:02]} 14. Qxf5 {[%clk 0:02:11]}  Bxf1 {[%clk 0:02:02]} 15. Ng5 {[%clk 0:02:06]}  g6 {[%clk 0:02:02]} 16. Qh3 {[%clk 0:02:06]}  f6 {[%clk 0:01:58]} 17. Ne6 {[%clk 0:01:54]}  Qd7 {[%clk 0:01:58]} 18. Rxf1 {[%clk 0:00:44]}  Re8 {[%clk 0:01:57]} 19. Nf4 {[%clk 0:00:43]}  Qxh3 {[%clk 0:01:56]} 20. gxh3 {[%clk 0:00:43]}  fxe5 {[%clk 0:01:55]} 21. Nxd5 {[%clk 0:00:43]}  Rd8 {[%clk 0:01:27]} 22. Nc7 {[%clk 0:00:42]}  Nc6 {[%clk 0:01:28]} 23. Nxa8 {[%clk 0:00:41]}  Nxd4 {[%clk 0:01:29]} 24. Bh6 {[%clk 0:00:24]}  Rxa8 {[%clk 0:01:28]} 25. Kg2 {[%clk 0:00:24]}  Rc8 {[%clk 0:01:19]} 26. Re1 {[%clk 0:00:24]}  Rc5 {[%clk 0:01:12]} 27. Re4 {[%clk 0:00:23]}  Nxc2 {[%clk 0:01:08]} 28. f4 {[%clk 0:00:22]}  Kf7 {[%clk 0:01:06]} 29. fxe5 {[%clk 0:00:21]}  Ke6 {[%clk 0:01:07]} 30. Rd4 {[%clk 0:00:20]}  Nxd4 {[%clk 0:01:04]} 0-1


[Site "https://www.chess.com"]

[Event "Titled Tuesday Blitz September 21 2021"]
[White "Haitin, Ilja"]
[Black "Shipov, Sergei"]
[WhiteFideId "4501764"]
[BlackFideId "4113624"]
[WhiteElo "2218"]
[BlackElo "2795"]
[Result "0-1"]
[Round "02"]
[TimeControl "180+1"]
[Date "2021.09.21"]
[WhiteClock "0:00:02"]
[BlackClock "0:00:35"]

1. e4 {[%clk 0:03:00]}  e6 {[%clk 0:02:59]} 2. d3 {[%clk 0:03:00]}  d5 {[%clk 0:02:58]} 3. Nd2 {[%clk 0:03:01]}  c5 {[%clk 0:02:58]} 4. Ngf3 {[%clk 0:03:01]}  Nc6 {[%clk 0:02:58]} 5. g3 {[%clk 0:03:01]}  Nf6 {[%clk 0:02:59]} 6. Bg2 {[%clk 0:03:01]}  g6 {[%clk 0:02:59]} 7. O-O {[%clk 0:03:01]}  Bg7 {[%clk 0:03:00]} 8. c3 {[%clk 0:02:58]}  O-O {[%clk 0:02:56]} 9. Re1 {[%clk 0:02:57]}  a5 {[%clk 0:02:55]} 10. e5 {[%clk 0:02:34]}  Nd7 {[%clk 0:02:53]} 11. d4 {[%clk 0:02:34]}  cxd4 {[%clk 0:02:46]} 12. cxd4 {[%clk 0:02:33]}  f6 {[%clk 0:02:37]} 13. exf6 {[%clk 0:02:27]}  Qxf6 {[%clk 0:02:37]} 14. Qe2 {[%clk 0:01:20]}  Nb6 {[%clk 0:02:29]} 15. Nb3 {[%clk 0:00:55]}  a4 {[%clk 0:01:54]} 16. Nc5 {[%clk 0:00:53]}  a3 {[%clk 0:01:31]} 17. bxa3 {[%clk 0:00:32]}  Qxf3 {[%clk 0:01:02]} 18. Bxf3 {[%clk 0:00:05]}  Nxd4 {[%clk 0:01:01]} 19. Rb1 {[%clk 0:00:04]}  Nxe2+ {[%clk 0:01:01]} 20. Bxe2 {[%clk 0:00:04]}  Bd4 {[%clk 0:00:51]} 21. Nd3 {[%clk 0:00:04]}  Nc4 {[%clk 0:00:49]} 22. Bg4 {[%clk 0:00:04]}  e5 {[%clk 0:00:42]} 23. Bh6 {[%clk 0:00:03]}  Bxg4 {[%clk 0:00:41]} 24. Bxf8 {[%clk 0:00:03]}  Rxf8 {[%clk 0:00:42]} 25. Rxb7 {[%clk 0:00:03]}  e4 {[%clk 0:00:34]} 26. Nf4 {[%clk 0:00:02]}  g5 {[%clk 0:00:35]} 0-1


[Site "https://www.chess.com"]

[Event "Titled Tuesday Blitz September 21 2021"]
[White "Holt, Conrad"]
[Black "Silva, Miguel Antonio Neto"]
[WhiteFideId "2034387"]
[BlackFideId "1911929"]
[WhiteElo "2586"]
[BlackElo "2283"]
[Result "1-0"]
[Round "02"]
[TimeControl "180+1"]
[Date "2021.09.21"]
[WhiteClock "0:00:09"]
[BlackClock "0:00:11"]

1. d4 {[%clk 0:03:00]}  Nf6 {[%clk 0:02:57]} 2. c4 {[%clk 0:03:01]}  e6 {[%clk 0:02:57]} 3. Nc3 {[%clk 0:03:01]}  Bb4 {[%clk 0:02:57]} 4. Qc2 {[%clk 0:03:01]}  d5 {[%clk 0:02:55]} 5. cxd5 {[%clk 0:03:00]}  exd5 {[%clk 0:02:55]} 6. Bg5 {[%clk 0:02:59]}  h6 {[%clk 0:02:39]} 7. Bxf6 {[%clk 0:02:59]}  Qxf6 {[%clk 0:02:35]} 8. a3 {[%clk 0:03:00]}  Bxc3+ {[%clk 0:02:27]} 9. Qxc3 {[%clk 0:03:00]}  O-O {[%clk 0:02:26]} 10. e3 {[%clk 0:03:01]}  Bf5 {[%clk 0:02:24]} 11. Ne2 {[%clk 0:02:59]}  c6 {[%clk 0:02:15]} 12. Ng3 {[%clk 0:02:58]}  Bg6 {[%clk 0:02:08]} 13. Be2 {[%clk 0:02:59]}  Nd7 {[%clk 0:02:01]} 14. O-O {[%clk 0:02:58]}  Qd6 {[%clk 0:02:02]} 15. b4 {[%clk 0:02:49]}  f5 {[%clk 0:01:59]} 16. f4 {[%clk 0:02:14]}  Rae8 {[%clk 0:01:56]} 17. Rfe1 {[%clk 0:02:12]}  Re6 {[%clk 0:01:55]} 18. Bd3 {[%clk 0:02:11]}  Qe7 {[%clk 0:01:52]} 19. Bf1 {[%clk 0:01:11]}  Re8 {[%clk 0:01:45]} 20. Kf2 {[%clk 0:01:09]}  Qh4 {[%clk 0:01:36]} 21. Kg1 {[%clk 0:00:31]}  Nf6 {[%clk 0:01:31]} 22. Be2 {[%clk 0:00:24]}  Rxe3 {[%clk 0:01:24]} 23. Qd2 {[%clk 0:00:23]}  Qxf4 {[%clk 0:01:02]} 24. Rf1 {[%clk 0:00:22]}  Qg5 {[%clk 0:00:57]} 25. Bf3 {[%clk 0:00:17]}  f4 {[%clk 0:00:36]} 26. Ne2 {[%clk 0:00:13]}  Ne4 {[%clk 0:00:29]} 27. Qc1 {[%clk 0:00:12]}  Rf8 {[%clk 0:00:17]} 28. Ra2 {[%clk 0:00:12]}  Nd6 {[%clk 0:00:13]} 29. a4 {[%clk 0:00:09]}  Bd3 {[%clk 0:00:13]} 30. Rd1 {[%clk 0:00:07]}  Bxe2 {[%clk 0:00:13]} 31. Rxe2 {[%clk 0:00:08]}  Rxe2 {[%clk 0:00:13]} 32. Bxe2 {[%clk 0:00:09]}  f3 {[%clk 0:00:12]} 33. Bxf3 {[%clk 0:00:06]}  Qxc1 {[%clk 0:00:09]} 34. Rxc1 {[%clk 0:00:07]}  Rf4 {[%clk 0:00:09]} 35. b5 {[%clk 0:00:08]}  Rxd4 {[%clk 0:00:09]} 36. bxc6 {[%clk 0:00:08]}  bxc6 {[%clk 0:00:10]} 37. Rxc6 {[%clk 0:00:08]}  Ne4 {[%clk 0:00:11]} 38. Rc8+ {[%clk 0:00:04]}  Kh7 {[%clk 0:00:09]} 39. a5 {[%clk 0:00:04]}  Ra4 {[%clk 0:00:08]} 40. Bxe4+ {[%clk 0:00:04]}  dxe4 {[%clk 0:00:08]} 41. Rc5 {[%clk 0:00:04]}  Ra2 {[%clk 0:00:07]} 42. h4 {[%clk 0:00:04]}  Kg6 {[%clk 0:00:07]} 43. h5+ {[%clk 0:00:04]}  Kf6 {[%clk 0:00:08]} 44. Rc6+ {[%clk 0:00:05]}  Kf5 {[%clk 0:00:07]} 45. Ra6 {[%clk 0:00:05]}  Kf4 {[%clk 0:00:07]} 46. Rxa7 {[%clk 0:00:04]}  Ke3 {[%clk 0:00:07]} 47. Rxg7 {[%clk 0:00:04]}  Rxa5 {[%clk 0:00:07]} 48. Kh2 {[%clk 0:00:04]}  Rxh5+ {[%clk 0:00:07]} 49. Kg1 {[%clk 0:00:05]}  Rg5 {[%clk 0:00:08]} 50. Rh7 {[%clk 0:00:04]}  h5 {[%clk 0:00:08]} 51. Ra7 {[%clk 0:00:05]}  Rb5 {[%clk 0:00:08]} 52. Ra3+ {[%clk 0:00:05]}  Kf4 {[%clk 0:00:09]} 53. g3+ {[%clk 0:00:04]}  Kg4 {[%clk 0:00:08]} 54. Kf2 {[%clk 0:00:05]}  Rb2+ {[%clk 0:00:07]} 55. Ke3 {[%clk 0:00:05]}  Rg2 {[%clk 0:00:08]} 56. Kxe4 {[%clk 0:00:06]}  Rxg3 {[%clk 0:00:08]} 57. Ra8 {[%clk 0:00:06]}  Rg1 {[%clk 0:00:09]} 58. Rg8+ {[%clk 0:00:06]}  Kh3 {[%clk 0:00:10]} 59. Rxg1 {[%clk 0:00:07]}  h4 {[%clk 0:00:10]} 60. Rg7 {[%clk 0:00:08]}  Kh2 {[%clk 0:00:11]} 61. Kf3 {[%clk 0:00:08]}  h3 {[%clk 0:00:11]} 62. Rh7 {[%clk 0:00:09]} 1-0


[Site "https://www.chess.com"]

[Event "Titled Tuesday Blitz September 21 2021"]
[White "Jacobson, Aaron"]
[Black "Kovalev, Vladislav"]
[WhiteFideId "2089912"]
[BlackFideId "13504398"]
[WhiteElo "2265"]
[BlackElo "2573"]
[Result "0-1"]
[Round "02"]
[TimeControl "180+1"]
[Date "2021.09.21"]
[WhiteClock "0:00:01"]
[BlackClock "0:00:20"]

1. e4 {[%clk 0:02:59]}  e5 {[%clk 0:03:00]} 2. Nf3 {[%clk 0:02:57]}  Nc6 {[%clk 0:03:00]} 3. Nc3 {[%clk 0:02:58]}  Nf6 {[%clk 0:03:00]} 4. d4 {[%clk 0:02:59]}  exd4 {[%clk 0:03:00]} 5. Nxd4 {[%clk 0:02:59]}  Bb4 {[%clk 0:03:01]} 6. Nxc6 {[%clk 0:03:00]}  bxc6 {[%clk 0:03:02]} 7. Bd3 {[%clk 0:03:01]}  O-O {[%clk 0:03:02]} 8. O-O {[%clk 0:03:01]}  d5 {[%clk 0:03:03]} 9. exd5 {[%clk 0:03:02]}  cxd5 {[%clk 0:03:04]} 10. h3 {[%clk 0:03:02]}  c6 {[%clk 0:03:04]} 11. Qf3 {[%clk 0:03:03]}  Rb8 {[%clk 0:03:04]} 12. Bf4 {[%clk 0:03:03]}  Bd6 {[%clk 0:03:04]} 13. b3 {[%clk 0:03:02]}  Re8 {[%clk 0:02:44]} 14. Rfe1 {[%clk 0:03:00]}  Rxe1+ {[%clk 0:02:43]} 15. Rxe1 {[%clk 0:03:01]}  Be6 {[%clk 0:02:43]} 16. Na4 {[%clk 0:02:51]}  c5 {[%clk 0:02:27]} 17. Bxd6 {[%clk 0:02:47]}  Qxd6 {[%clk 0:02:27]} 18. Qe3 {[%clk 0:02:47]}  Nd7 {[%clk 0:02:20]} 19. f4 {[%clk 0:02:35]}  c4 {[%clk 0:01:45]} 20. f5 {[%clk 0:02:10]}  cxd3 {[%clk 0:01:20]} 21. fxe6 {[%clk 0:02:05]}  fxe6 {[%clk 0:01:18]} 22. cxd3 {[%clk 0:01:44]}  e5 {[%clk 0:01:18]} 23. Qxa7 {[%clk 0:01:39]}  Re8 {[%clk 0:01:16]} 24. Rc1 {[%clk 0:01:16]}  e4 {[%clk 0:01:00]} 25. dxe4 {[%clk 0:01:12]}  dxe4 {[%clk 0:01:01]} 26. Re1 {[%clk 0:00:49]}  Ne5 {[%clk 0:00:38]} 27. Kh1 {[%clk 0:00:04]}  Nd3 {[%clk 0:00:36]} 28. Re2 {[%clk 0:00:01]}  Qf6 {[%clk 0:00:31]} 29. Qe3 {[%clk 0:00:01]}  Rc8 {[%clk 0:00:20]} 0-1


[Site "https://www.chess.com"]